{"text_format":"1","workbook":"xlsx","n_sheets":2,"sheets":["Ноябрь","Лист2"],"not_rendered":{"charts":3,"images":0,"macros":1,"external_links":0,"defined_names":1,"comments":0,"pivot_tables":0},"unopened":[],"bounds":{"document_bytes":16777216,"sheet_cells":100000,"rows_first":2000,"rows_last":500,"rows_between":2000,"halvings":0,"cell_chars":16384,"cell_head_chars":4096},"cells_cut":0,"cells_raw":0,"read":"whole","date_system":"1900"}

{"sheet":"Ноябрь","index":0,"n_rows":92,"n_cols":12,"rows_kept":92,"cut":false,"hidden":false,"merged":[[87,9,87,11],[89,9,89,11],[90,9,90,11],[0,0,0,11],[91,7,92,7],[91,8,92,8],[91,11,111,11],[86,9,86,11],[88,9,88,11]]}
["Отчет по заявкам за период ___ 2016г._______"]
["Повтор","П№","Инженер","Поступила","Выполнена","Объект","Адрес","Статус","Заявка","Смета","Акт","Комментарий"]
[{"$f":"IFERROR(IF(MATCH(B3,$B$1:$B$2470,0)=ROW(),COUNTIF($B$1:$B$2470,B3),\"\"),\"\")","v":1},1208,"Ермаков","2016-11-01","2016-11-01","ГБ Мед.Соц.Экспертиза по Мос.Обл. - бюро № 32","МО., г. Мытищи, ул. 2-я Крестьянская д. 39/1","Выполнена","обучение"]
[{"$f":"IFERROR(IF(MATCH(B4,$B$1:$B$2470,0)=ROW(),COUNTIF($B$1:$B$2470,B4),\"\"),\"\")","v":1},3428,"Громов","2016-11-01","2016-11-01","Магазин «ХОУМС» ООО Дрогери Бум, МО","г. Наро-Фоминск, ул. Шибанкова д. 2 ","Выполнена","не смогли поставить на охрану "]
[{"$f":"IFERROR(IF(MATCH(B5,$B$1:$B$2470,0)=ROW(),COUNTIF($B$1:$B$2470,B5),\"\"),\"\")","v":1},1579,"Яцков","2016-11-01","2016-11-01","Магазин «Табак» -- ООО «ТЧК – Групп» ","многократное срабатывание раздел 2 ","Выполнена","многократное срабатывание раздел 2 ( Корпус прибора открыт).",null,"Да"]
[{"$f":"IFERROR(IF(MATCH(B6,$B$1:$B$2470,0)=ROW(),COUNTIF($B$1:$B$2470,B6),\"\"),\"\")","v":1},600,"Яцков","2016-11-01","2016-11-04","Коттедж Черемных О.Я. МО","МО, Истринский р-н, дер. Козенки, д. 40 ","Выполнена","многократное срабатывание зона №1 (периметр дома, внешняя входная дверь)"]
[{"$f":"IFERROR(IF(MATCH(B7,$B$1:$B$2470,0)=ROW(),COUNTIF($B$1:$B$2470,B7),\"\"),\"\")","v":1},7089,"Яцков","2016-11-01","2016-11-02","« Пицца – Донателло», ","», г. Москва, ул. Никулинская, д. 21 ","Выполнена","многократное срабатывание зона№1 (пожарная тревога). "]
[{"$f":"IFERROR(IF(MATCH(B8,$B$1:$B$2547,0)=ROW(),COUNTIF($B$1:$B$2547,B8),\"\"),\"\")","v":1},36,"Яцков","2016-10-28","2016-11-07","кв.Цховребова А.В ","ул. Маршала Тухачевского, д. 58, к.3., кв.93","Выполнена","восстановить охранную сигнализацию",3500]
[1,2517,"Игумнов","2016-10-31","2016-11-01","Ломбард Золотая вьюга","Волгоградский пр-т, д. 119/22","Выполнена","смена кода"]
["",2531,"Игумнов","2016-10-31","2016-11-02","Ломбард Золотая вьюга",".Новокосинская д.31/4, пав.106","Выполнена","Не проходит сигнал с брелка Ларина"]
["",9724,"Игумнов","2016-10-31","2016-11-07","Ломбард Золотая вьюга","Новочеркасский, д. 41, корп. 7","Выполнена","смена кода"]
[{"$f":"IFERROR(IF(MATCH(B12,$B$1:$B$2541,0)=ROW(),COUNTIF($B$1:$B$2541,B12),\"\"),\"\")","v":1},2504,"Игумнов","2016-10-27","2016-10-03","Ломбард Золотая вьюга","Перерва, д. 56/2","Выполнена","Нет изображения на мониторе с мини-видеокамеры, просьба исправить"]
[1,2533,"Игумнов","2016-10-24","2016-11-09","Ломбард Золотая вьюга","Свободный пр-кт, дом 33 А","Новая","смена кодов"]
["",2510,"Игумнов","2016-10-24","2016-11-11","Ломбард Золотая вьюга","Анадырский пр-д, д. 8, кор. 1","Новая","смена кодов"]
[{"$f":"IFERROR(IF(MATCH(B15,$B$1:$B$2470,0)=ROW(),COUNTIF($B$1:$B$2470,B15),\"\"),\"\")","v":2},2537,"Громов","2016-11-01","2016-11-02","Ломбард Золотая вьюга","г. Одинцово, Можайское шоссе, д. 119 Б","Выполнена","неисправны брелоки КТС"]
[1,1616,"Громов","2016-11-02","2016-11-03","Ломбард – Скупка «Победа», ","ул. Плещеева, дом 8","Выполнена",", не проходит одна брелоку КТС"]
[1,2503,"Игумнов","2016-11-02","2016-11-07","Ломбард Золотая вьюга","г. Балашиха, ул. Фадеева, д. 7а","Выполнена","смена кода"]
[2,515,"Ермаков","2016-11-02","2016-11-02","магазин «Полушка», ","Народного ополчения, дом 22","Выполнена","сменить коды доступа"]
[1,3016,"Яцков","2016-11-02","2016-11-02","Нелюбина","Красногорский р-н, д. Степановское, д.92","Выполнена","установка антены",null,"Да"]
[1,3436,"Яцков","2016-11-02","2016-11-09","ООО «РН-2», ","ул. Краснопролетарская 16с1","Передана","неисправные элементы питания в 5-ти датчиках и 1-ой РКТС. Оборудование Ритм. "]
[1,443,"Яцков","2016-10-28","2016-11-03","Ателье - ООО \"Валенсия\"","г. Москва, ул. Расплетина, д. 13","Выполнена","обследование пож. Сигн"]
[1,3007,"Яцков","2016-11-03","2016-11-07","Ломбард «На Можайке», ","ул. Можайское шоссе,д.28  ","Выполнена","просят техника, часто срабатывает зона №4 (вторжение касса)"]
[1,4042,"Громов","2016-11-04","2016-11-08","Мосэнергосбыт  -  Пушкино","МО., г. Пушкино, ул. Островского, д.22 8-965-409-43-98","Выполнена","доустановку КТС",1700]
[1,3132,"Громов","2016-11-04","2016-11-07","Грнинвуд","Гринвуд","Выполнена","визит Васюков,Громов,Соболев"]
[1,3414,"Ермаков","2016-11-04","2016-11-07","ООО «Амвей», ","Духовской пер. дом 12","Выполнена","срабатывает зона 28"]
[1,3403,"Ермаков","2016-11-04","2016-11-07","«ПрофиБар», ","Денисовский  переулок, дом 30, стр.10","Выполнена","тревога связи"]
[1,4296,"Громов","2016-11-04","2016-11-08","Мос.Обл.ЕИРЦ ","Орехово Зуевский район, д. Демихово, улица Луговая, дом 2","Передана","частые сработки зоны 18( кабинет ИК), контактное лицо:  Марина Анатольевна 8-916-213-07-23."]
[1,3283,"Яцков","2016-11-03","2016-11-04","Первый Ювелирный ломбард","Профсоюзная д.102","Выполнена","замена батареек"]
[1,219,"Яцков","2016-11-03","2016-11-04","Максон","МО пос.Истра д17 кв2","Выполнена","Сработала пожарная сигнализация"]
[1,3040,"Громов","2016-11-07","2016-11-07","Мебиус","Щукинская  д 2","Выполнена","не могут снятся с озраны"]
[1,3052,"Громов","2016-11-05","2016-11-05","Грф Злобин","д.Брехово ул.Цветочная д7","Выполнена","замена батареек"]
[1,1522,"Громов","2016-11-05","2016-11-05","1 ювелирный ломбард","3 крутицкий пер 18","Выполнена","программирование панели добавление датчиков"]
[1,1607,"Громов","2016-11-05","2016-11-05","Деньги взаймы","Алтуфьевское шоссе 88","Выполнена","сработка зоны программирование"]
["",515,"Ермаков","2016-11-08","2016-11-08","Магазин « ПОЛУШКА»",", ул. Народного Ополчения, д. 22 корп.1","Выполнена","замена батареек. Тел для связи:8-909-633-32-39 Анастасия"]
[1,3401,"Ермаков","2016-11-08","2016-11-08","Магазин Мебели – ООО «Домино» ",", Лениградский пр-т, д.30, стр. 1 ","Выполнена","нужно перенестиклавиатуру),телефон для связи: 8-903-100-08-40 – Алексей."]
["",null,"Марачук","2016-11-08","2016-11-08","хостел, Светлана Васильевна 8-916-691-04-46","Мневники д.7 к. 1","Выполнена","обследование пож. Сигн"]
[1,210,"Яцков","2016-11-08","2016-11-08","Стоматология ООО « Крамос» ","ул. Планерная, д. 7,корп. 1 ","Выполнена","смену пароля"]
[1,3099,"Яцков","2016-11-08","2016-11-08","ИП Тимербаев ",". Мытищинский р-н, с/п Федоскинское","Выполнена","ТРЕВОГА СВЯЗИ"]
[1,3417,"Яцков","2016-11-07","2016-11-08","Универсам Мета","ул. Маршала Бирюзова, д.14","Выполнена","обучение(составить список всех кто ставит\\снимает)"]
[1,2530,"Игумнов","2016-11-07","2016-11-08","Ломбард Золотая вьюга"," ул. Снежная, д.16, кор.1","Новая","Не работает камера № 3 на лицо"]
[1,1334,"Игумнов","2016-11-07","2016-11-08","Ломбард Золотая вьюга","Кронштадтский б-р, д. 5 Б, стр. 1","Новая","в замене видио регистратора"]
["",2537,"Игумнов","2016-11-07","2016-11-08","Ломбард Золотая вьюга","Одинцово, Мож. Шоссе 119б","Выполнена","ночью  срабатывала зона № 19"]
["",9724,"Игумнов","2016-10-31","2016-11-16","Ломбард Золотая вьюга","Новочеркасский, д. 41, корп. 7","Новая","смена кода"]
[""]
[""]
[""]
[{"$f":"IFERROR(IF(MATCH(B47,$B$1:$B$2470,0)=ROW(),COUNTIF($B$1:$B$2470,B47),\"\"),\"\")","v":""}]
[""]
[""]
[""]
[""]
[""]
[""]
[""]
[""]
[""]
[""]
[""]
[""]
[""]
[""]
[""]
[""]
[""]
[""]
[""]
[""]
[""]
[""]
[""]
[""]
[""]
[""]
[""]
[""]
[""]
[""]
[""]
[{"$f":"IFERROR(IF(MATCH(B79,$B$1:$B$2470,0)=ROW(),COUNTIF($B$1:$B$2470,B79),\"\"),\"\")","v":""}]
[""]
[""]
[""]
[""]
[""]
[""]
[""]
["Назначено Игумнову",{"$f":"COUNTIF(C3:C86,\"Игумнов\")","v":11},null,"Выполнено Игумновым",{"$f":"COUNTIFS(C3:C86,\"Игумнов\",H3:H86,\"Выполнена\")","v":6},"Заявок \"Выполнена\"",{"$f":"COUNTIF(H3:H86,\"Выполнена\")","v":34},"Одиночных выездов",{"$f":"COUNTIF(A3:A86,\"=1\")","v":32},"Общее Количество Заявок"]
["Назначено Громову",{"$f":"COUNTIF(C3:C86,\"Громов\")","v":10},null,"Выполнено Громовым",{"$f":"COUNTIFS(C3:C86,\"Громов\",H3:H86,\"Выполнена\")","v":9},"Заявок \"Не выполнена\"",{"$f":"COUNTIF(H3:H86,\"Невыполнена\")","v":0},"Двойных выездов",{"$f":"COUNTIF(A3:A86,\"=2\")","v":2},{"$f":"COUNTA(B3:B86)","v":40}]
["Назначено Козлов",{"$f":"COUNTIF(C3:C86,\"Козлов\")","v":0},null,"Выполнено Козловым",{"$f":"COUNTIFS(C3:C86,\"Козлов\",H3:H86,\"Выполнена\")","v":0},"Заявок \"Отложена\"",{"$f":"COUNTIF(H3:H86,\"Отложена\")","v":0},"Тройных и более",{"$f":"COUNTIF(A3:A86,\">=3\")","v":0}]
["Назначено Яцкову",{"$f":"COUNTIF(C3:C87,\"Яцков\")","v":13},null,"Выполнено Яцковым",{"$f":"COUNTIFS(C3:C86,\"Яцков\",H3:H86,\"Выполнена\")","v":12},"Заявок \"Новая\"",{"$f":"COUNTIF(H3:H86,\"Новая\")","v":5},null,"В столбце \"дата\" зеленый цвет - сегодня","Кол-во заявок Золотая Вьюга"]
["Назначено Ермакову",{"$f":"COUNTIF(C3:C88,\"Ермаков\")","v":6},null,"Выполнено Ермаковым",{"$f":"COUNTIFS(C3:C86,\"Ермаков\",H3:H86,\"Выполнена\")","v":6},"Заявок \"Передана\"",{"$f":"COUNTIF(H3:H86,\"Передана\")","v":2},null,"В столбце \"дата\" синий цвет - завтра",{"$f":"COUNTIF(F3:F86,\"Ломбард Золотая Вьюга\")","v":12}]
[null,null,null,null,null,null,null,null,"В столбце \"дата\" желтый цвет - вчера"]

{"sheet":"Лист2","index":1,"n_rows":0,"n_cols":0,"rows_kept":0,"cut":false,"hidden":false,"merged":[]}